{"text_format":"3","workbook":"xlsx","n_sheets":2,"sheets":["Sākums","Brīvdienu budžeta plānotājs"],"not_rendered":{"defined_names":1},"read":"whole","date_system":"1900"}

{"sheet":"Sākums","index":0,"n_rows":4,"n_cols":2,"rows_kept":4}
[null,"Kā izmantot šo veidni"]
[null,"Sekojiet saviem izdevumiem, izmantojot šo brīvdienu budžeta plānotāju."]
[null,"Lai sāktu, ievadiet savu budžets un ierakstiet faktiskos izdevumus katrā kategoriju tabulā."]
[null,"Jums automātiski tiek aprēķināts brīvdienu budžets, kopējie faktiskie izdevumiun starpība."]

{"sheet":"Brīvdienu budžeta plānotājs","index":1,"n_rows":36,"n_cols":14,"rows_kept":36,"merged":[[0,2,5,7],[2,10,2,11],[8,2,8,5],[8,10,8,13],[18,2,18,5],[18,10,18,13],[29,2,29,5],[29,10,29,13]]}
[null,null,"Brīvdienu budžeta \nplānotājs"]
[]
[{"$nulls":10},"BRĪVDIENU BUDŽETS",null,null,{"$f":"SUM(Dāvanas[Budžets],Iepakojums[Budžets],(Ceļojums[Budžets],(Maltītes[Budžets],(Izklaide[Budžets],Dažādi[Budžets]))))","v":{"v":750,"d":"750.00 EUR"}}]
[{"$nulls":10},"FAKTISKIE TĒRIŅI",null,null,{"$f":"SUM((Dāvanas[Faktiskie],(Iepakojums[Faktiskie],(Ceļojums[Faktiskie],(Maltītes[Faktiskie],(Izklaide[Faktiskie],(Dažādi[Faktiskie])))))))","v":{"v":820,"d":"820.00 EUR"}}]
[]
[{"$nulls":10},"STARPĪBA (budžeta deficīts/pārpalikums)",null,null,{"$f":"SUM(N3-N4)","v":{"v":-70,"d":"-70.00 EUR"}}]
[]
[]
[null,null,"DĀVANAS",{"$nulls":7},"BRĪVDIENU VAKARIŅAS"]
[null,null,"Prece","Budžets","Faktiskie","Starpība",{"$nulls":4},"Prece","Budžets","Faktiskie","Starpība"]
[null,null,"Ģimene",{"v":500,"d":"500.00 EUR"},{"v":495,"d":"495.00 EUR"},{"$f":"Dāvanas[[#This Row],[Budžets]]-Dāvanas[[#This Row],[Faktiskie]]","v":{"v":5,"d":"5.00 EUR"}},{"$nulls":4},"Pārtikas preces",null,null,{"$f":"Maltītes[[#This Row],[Budžets]]-Maltītes[[#This Row],[Faktiskie]]","v":{"v":0,"d":"0.00 EUR"}}]
[null,null,"Draugi",{"v":250,"d":"250.00 EUR"},{"v":325,"d":"325.00 EUR"},{"$f":"Dāvanas[[#This Row],[Budžets]]-Dāvanas[[#This Row],[Faktiskie]]","v":{"v":-75,"d":"-75.00 EUR"}},{"$nulls":4},"Dzērieni",null,null,{"$f":"Maltītes[[#This Row],[Budžets]]-Maltītes[[#This Row],[Faktiskie]]","v":{"v":0,"d":"0.00 EUR"}}]
[null,null,"Kolēģi",null,null,{"$f":"Dāvanas[[#This Row],[Budžets]]-Dāvanas[[#This Row],[Faktiskie]]","v":{"v":0,"d":"0.00 EUR"}},{"$nulls":4},"Dekorācijas",null,null,{"$f":"Maltītes[[#This Row],[Budžets]]-Maltītes[[#This Row],[Faktiskie]]","v":{"v":0,"d":"0.00 EUR"}}]
[null,null,"Skolotāji, auklītes, aukles utt.",null,null,{"$f":"Dāvanas[[#This Row],[Budžets]]-Dāvanas[[#This Row],[Faktiskie]]","v":{"v":0,"d":"0.00 EUR"}},{"$nulls":4},"Citi (cilne šīs rindas pēdējā kolonnā rindas pievienošanai)",null,null,{"$f":"Maltītes[[#This Row],[Budžets]]-Maltītes[[#This Row],[Faktiskie]]","v":{"v":0,"d":"0.00 EUR"}}]
[null,null,"Ziedojumi labdarībai",null,null,{"$f":"Dāvanas[[#This Row],[Budžets]]-Dāvanas[[#This Row],[Faktiskie]]","v":{"v":0,"d":"0.00 EUR"}},{"$nulls":7},{"$f":"Maltītes[[#This Row],[Budžets]]-Maltītes[[#This Row],[Faktiskie]]","v":{"v":0,"d":"0.00 EUR"}}]
[null,null,"Citi (cilne šīs rindas pēdējā kolonnā rindas pievienošanai)",null,null,{"$f":"Dāvanas[[#This Row],[Budžets]]-Dāvanas[[#This Row],[Faktiskie]]","v":{"v":0,"d":"0.00 EUR"}}]
[null,null,"Kopā",{"$f":"SUBTOTAL(109,Dāvanas[Budžets])","v":{"v":750,"d":"750.00 EUR"}},{"$f":"SUBTOTAL(109,Dāvanas[Faktiskie])","v":{"v":820,"d":"820.00 EUR"}},{"$f":"SUBTOTAL(109,Dāvanas[Starpība])","v":{"v":-70,"d":"-70.00 EUR"}},{"$nulls":4},"Kopā",{"$f":"SUBTOTAL(109,Maltītes[Budžets])","v":{"v":0,"d":"0.00 EUR"}},{"$f":"SUBTOTAL(109,Maltītes[Faktiskie])","v":{"v":0,"d":"0.00 EUR"}},{"$f":"SUBTOTAL(109,Maltītes[Starpība])","v":{"v":0,"d":"0.00 EUR"}}]
[]
[null,null,"IEPAKOJUMS",{"$nulls":7},"IZKLAIDE"]
[null,null,"Prece","Budžets","Faktiskie","Starpība",{"$nulls":4},"Prece","Budžets","Faktiskie","Starpība"]
[null,null,"Dāvanu iesaiņojums",null,null,{"$f":"Iepakojums[[#This Row],[Budžets]]-Iepakojums[[#This Row],[Faktiskie]]","v":{"v":0,"d":"0.00 EUR"}},{"$nulls":4},"Ballītes personāls (bārmenis, oficianti, apkopēji utt.)",null,null,{"$f":"Izklaide[[#This Row],[Budžets]]-Izklaide[[#This Row],[Faktiskie]]","v":{"v":0,"d":"0.00 EUR"}}]
[null,null,"Atzīmes",null,null,{"$f":"Iepakojums[[#This Row],[Budžets]]-Iepakojums[[#This Row],[Faktiskie]]","v":{"v":0,"d":"0.00 EUR"}},{"$nulls":4},"Dekorācijas",null,null,{"$f":"Izklaide[[#This Row],[Budžets]]-Izklaide[[#This Row],[Faktiskie]]","v":{"v":0,"d":"0.00 EUR"}}]
[null,null,"Materiāli (lentes, līmlente utt.)",null,null,{"$f":"Iepakojums[[#This Row],[Budžets]]-Iepakojums[[#This Row],[Faktiskie]]","v":{"v":0,"d":"0.00 EUR"}},{"$nulls":4},"Pārtika un dzērieni",null,null,{"$f":"Izklaide[[#This Row],[Budžets]]-Izklaide[[#This Row],[Faktiskie]]","v":{"v":0,"d":"0.00 EUR"}}]
[null,null,"Kārbas",null,null,{"$f":"Iepakojums[[#This Row],[Budžets]]-Iepakojums[[#This Row],[Faktiskie]]","v":{"v":0,"d":"0.00 EUR"}},{"$nulls":4},"Apģērbs",null,null,{"$f":"Izklaide[[#This Row],[Budžets]]-Izklaide[[#This Row],[Faktiskie]]","v":{"v":0,"d":"0.00 EUR"}}]
[null,null,"Pasta izdevumi",null,null,{"$f":"Iepakojums[[#This Row],[Budžets]]-Iepakojums[[#This Row],[Faktiskie]]","v":{"v":0,"d":"0.00 EUR"}},{"$nulls":4},"Biļetes",null,null,{"$f":"Izklaide[[#This Row],[Budžets]]-Izklaide[[#This Row],[Faktiskie]]","v":{"v":0,"d":"0.00 EUR"}}]
[null,null,"Citi (cilne šīs rindas pēdējā kolonnā rindas pievienošanai)",null,null,{"$f":"Iepakojums[[#This Row],[Budžets]]-Iepakojums[[#This Row],[Faktiskie]]","v":{"v":0,"d":"0.00 EUR"}},{"$nulls":4},"Vakariņas ārpus mājas",null,null,{"$f":"Izklaide[[#This Row],[Budžets]]-Izklaide[[#This Row],[Faktiskie]]","v":{"v":0,"d":"0.00 EUR"}}]
[{"$nulls":10},"Citi (cilne šīs rindas pēdējā kolonnā rindas pievienošanai)",null,null,{"$f":"Izklaide[[#This Row],[Budžets]]-Izklaide[[#This Row],[Faktiskie]]","v":{"v":0,"d":"0.00 EUR"}}]
[null,null,"Kopā",{"$f":"SUBTOTAL(109,Iepakojums[Budžets])","v":{"v":0,"d":"0.00 EUR"}},{"$f":"SUBTOTAL(109,Iepakojums[Faktiskie])","v":{"v":0,"d":"0.00 EUR"}},{"$f":"SUBTOTAL(109,Iepakojums[Starpība])","v":{"v":0,"d":"0.00 EUR"}},{"$nulls":4},"Kopā",{"$f":"SUBTOTAL(109,Izklaide[Budžets])","v":{"v":0,"d":"0.00 EUR"}},{"$f":"SUBTOTAL(109,Izklaide[Faktiskie])","v":{"v":0,"d":"0.00 EUR"}},{"$f":"SUBTOTAL(109,Izklaide[Starpība])","v":{"v":0,"d":"0.00 EUR"}}]
[]
[null,null,"CEĻOJUMS",{"$nulls":7},"DAŽĀDI"]
[null,null,"Prece","Budžets","Faktiskie","Starpība",{"$nulls":4},"Prece","Budžets","Faktiskie","Starpība"]
[null,null,"Lidojums",null,null,{"$f":"Ceļojums[[#This Row],[Budžets]]-Ceļojums[[#This Row],[Faktiskie]]","v":{"v":0,"d":"0.00 EUR"}},{"$nulls":4},"Brīvdienu fotoattēli",null,null,{"$f":"Dažādi[[#This Row],[Budžets]]-Dažādi[[#This Row],[Faktiskie]]","v":{"v":0,"d":"0.00 EUR"}}]
[null,null,"Apmešanās",null,null,{"$f":"Ceļojums[[#This Row],[Budžets]]-Ceļojums[[#This Row],[Faktiskie]]","v":{"v":0,"d":"0.00 EUR"}},{"$nulls":4},"Degviela ",null,null,{"$f":"Dažādi[[#This Row],[Budžets]]-Dažādi[[#This Row],[Faktiskie]]","v":{"v":0,"d":"0.00 EUR"}}]
[null,null,"Transports",null,null,{"$f":"Ceļojums[[#This Row],[Budžets]]-Ceļojums[[#This Row],[Faktiskie]]","v":{"v":0,"d":"0.00 EUR"}},{"$nulls":4},"Citi (cilne šīs rindas pēdējā kolonnā rindas pievienošanai)",null,null,{"$f":"Dažādi[[#This Row],[Budžets]]-Dažādi[[#This Row],[Faktiskie]]","v":{"v":0,"d":"0.00 EUR"}}]
[null,null,"Citi (cilne šīs rindas pēdējā kolonnā rindas pievienošanai)",null,null,{"$f":"Ceļojums[[#This Row],[Budžets]]-Ceļojums[[#This Row],[Faktiskie]]","v":{"v":0,"d":"0.00 EUR"}}]
[null,null,"Kopā",{"$f":"SUBTOTAL(109,Ceļojums[Budžets])","v":{"v":0,"d":"0.00 EUR"}},{"$f":"SUBTOTAL(109,Ceļojums[Faktiskie])","v":{"v":0,"d":"0.00 EUR"}},{"$f":"SUBTOTAL(109,Ceļojums[Starpība])","v":{"v":0,"d":"0.00 EUR"}},{"$nulls":4},"Kopā",{"$f":"SUBTOTAL(109,Dažādi[Budžets])","v":{"v":0,"d":"0.00 EUR"}},{"$f":"SUBTOTAL(109,Dažādi[Faktiskie])","v":{"v":0,"d":"0.00 EUR"}},{"$f":"SUBTOTAL(109,Dažādi[Starpība])","v":{"v":0,"d":"0.00 EUR"}}]